[Event "*** Titled Tuesday Blitz"]
[Site "Chess.com"]
[Date "2021.02.09"]
[Round "2"]
[White "MuhittinBuker"]
[Black "Pogosian_Manvel"]
[Result "0-1"]
[WhiteElo "2062"]
[BlackElo "2382"]
[TimeControl "180+1"]
[EndTime "10:18:47 PST"]
[Termination "Pogosian_Manvel won by checkmate"]

1. d4 {[%clk 0:03:00.9]} 1... Nf6 {[%clk 0:02:40.7]} 2. c4 {[%clk 0:02:55.8]}
2... e6 {[%clk 0:02:40.3]} 3. Nf3 {[%clk 0:02:54.4]} 3... d5 {[%clk 0:02:38.6]}
4. Nc3 {[%clk 0:02:53.5]} 4... Bb4 {[%clk 0:02:36.8]} 5. Bg5 {[%clk 0:02:53]}
5... h6 {[%clk 0:02:35.6]} 6. Bxf6 {[%clk 0:02:52.4]} 6... Qxf6 {[%clk 0:02:35]}
7. Qa4+ {[%clk 0:02:50]} 7... Nc6 {[%clk 0:02:34.3]} 8. e3 {[%clk 0:02:47.6]}
8... O-O {[%clk 0:02:31.4]} 9. cxd5 {[%clk 0:02:46.9]} 9... exd5 {[%clk
0:02:30.7]} 10. a3 {[%clk 0:02:44.3]} 10... Bxc3+ {[%clk 0:02:23.4]} 11. bxc3
{[%clk 0:02:43.6]} 11... Bd7 {[%clk 0:02:23]} 12. Qc2 {[%clk 0:02:41.7]} 12...
a6 {[%clk 0:02:08.6]} 13. Bd3 {[%clk 0:02:41.2]} 13... Na5 {[%clk 0:02:05.6]}
14. O-O {[%clk 0:02:40.5]} 14... Nc4 {[%clk 0:01:52.1]} 15. Bxc4 {[%clk
0:02:37.7]} 15... dxc4 {[%clk 0:01:53]} 16. e4 {[%clk 0:02:36]} 16... b5 {[%clk
0:01:50.2]} 17. Rfe1 {[%clk 0:02:33.8]} 17... c5 {[%clk 0:01:32.8]} 18. d5
{[%clk 0:02:23]} 18... Bg4 {[%clk 0:01:31.6]} 19. Nd2 {[%clk 0:02:01.5]} 19...
Qg6 {[%clk 0:01:27.6]} 20. Nf1 {[%clk 0:01:56.1]} 20... Rfe8 {[%clk 0:01:21.9]}
21. Ng3 {[%clk 0:01:53.9]} 21... h5 {[%clk 0:01:21.5]} 22. f3 {[%clk 0:01:50.3]}
22... Bd7 {[%clk 0:01:12.2]} 23. Qf2 {[%clk 0:01:49.5]} 23... h4 {[%clk
0:01:10.3]} 24. Nf1 {[%clk 0:01:48.9]} 24... Qf6 {[%clk 0:01:08.1]} 25. Rac1
{[%clk 0:01:46.1]} 25... Rac8 {[%clk 0:01:06.1]} 26. Ne3 {[%clk 0:01:41.4]}
26... Qf4 {[%clk 0:01:04.3]} 27. g3 {[%clk 0:01:26.2]} 27... hxg3 {[%clk
0:01:02.9]} 28. hxg3 {[%clk 0:01:26.7]} 28... Qf6 {[%clk 0:01:00.7]} 29. Kg2
{[%clk 0:01:24.9]} 29... Re5 {[%clk 0:00:59.4]} 30. g4 {[%clk 0:01:24]} 30...
Qb6 {[%clk 0:00:47.1]} 31. Qg3 {[%clk 0:01:23]} 31... Rce8 {[%clk 0:00:46.1]}
32. Rh1 {[%clk 0:01:19.1]} 32... Qf6 {[%clk 0:00:35.7]} 33. Rh2 {[%clk 0:01:03]}
33... Kf8 {[%clk 0:00:32.5]} 34. Rh8+ {[%clk 0:00:59.5]} 34... Ke7 {[%clk
0:00:32.5]} 35. Rxe8+ {[%clk 0:00:59.7]} 35... Kxe8 {[%clk 0:00:28.6]} 36. Rh1
{[%clk 0:00:59.2]} 36... Ke7 {[%clk 0:00:24.5]} 37. Nf5+ {[%clk 0:00:41.6]}
37... Bxf5 {[%clk 0:00:23]} 38. gxf5 {[%clk 0:00:41.8]} 38... g6 {[%clk
0:00:19.6]} 39. Rh6 {[%clk 0:00:36.3]} 39... Kd7 {[%clk 0:00:13.8]} 40. Qh3
{[%clk 0:00:33.2]} 40... Kc7 {[%clk 0:00:13]} 41. Qg3 {[%clk 0:00:21.5]} 41...
Kb6 {[%clk 0:00:12.8]} 42. Kf2 {[%clk 0:00:16.4]} 42... Ka5 {[%clk 0:00:13]} 43.
Kg2 {[%clk 0:00:15.2]} 43... Ka4 {[%clk 0:00:13.3]} 44. Qe1 {[%clk 0:00:14.5]}
44... Qg5+ {[%clk 0:00:12.5]} 45. Kf2 {[%clk 0:00:14.9]} 45... Qxh6 {[%clk
0:00:11.8]} 46. Qd1+ {[%clk 0:00:14.8]} 46... Ka5 {[%clk 0:00:12.3]} 47. d6
{[%clk 0:00:13.1]} 47... Qh2+ {[%clk 0:00:12.3]} 48. Ke3 {[%clk 0:00:13.4]}
48... gxf5 {[%clk 0:00:12.2]} 49. d7 {[%clk 0:00:12.9]} 49... f4# {[%clk
0:00:12.6]} 0-1

[Event "*** Titled Tuesday Blitz"]
[Site "Chess.com"]
[Date "2021.02.09"]
[Round "2"]
[White "volunteers1998"]
[Black "Loy_Konstantin"]
[Result "0-1"]
[WhiteElo "2039"]
[BlackElo "2377"]
[TimeControl "180+1"]
[EndTime "10:18:50 PST"]
[Termination "Loy_Konstantin won on time"]

1. e4 {[%clk 0:03:00.9]} 1... c5 {[%clk 0:02:59.4]} 2. Nf3 {[%clk 0:02:59.7]}
2... d6 {[%clk 0:02:59.3]} 3. d4 {[%clk 0:02:57]} 3... cxd4 {[%clk 0:02:59.8]}
4. Nxd4 {[%clk 0:02:54.6]} 4... Nf6 {[%clk 0:03:00.2]} 5. Nc3 {[%clk 0:02:53.3]}
5... g6 {[%clk 0:03:00.4]} 6. Be3 {[%clk 0:02:49.7]} 6... Bg7 {[%clk 0:03:00.5]}
7. f3 {[%clk 0:02:48.1]} 7... O-O {[%clk 0:03:00.9]} 8. Qd2 {[%clk 0:02:46.4]}
8... Nc6 {[%clk 0:03:01.1]} 9. g4 {[%clk 0:02:41.8]} 9... Bd7 {[%clk 0:02:59.6]}
10. h4 {[%clk 0:02:37.6]} 10... Rc8 {[%clk 0:02:59.1]} 11. h5 {[%clk 0:02:35]}
11... Ne5 {[%clk 0:02:59.5]} 12. O-O-O {[%clk 0:02:27.1]} 12... Qa5 {[%clk
0:02:46.9]} 13. Kb1 {[%clk 0:02:21.1]} 13... Nxf3 {[%clk 0:02:39.4]} 14. Nxf3
{[%clk 0:02:17.8]} 14... Rxc3 {[%clk 0:02:39.9]} 15. Qxc3 {[%clk 0:02:13.9]}
15... Qxc3 {[%clk 0:02:39.6]} 16. bxc3 {[%clk 0:02:12.7]} 16... Bxg4 {[%clk
0:02:40.5]} 17. Be2 {[%clk 0:02:08.5]} 17... Nxe4 {[%clk 0:02:39.9]} 18. Bd2
{[%clk 0:02:02.8]} 18... Nf2 {[%clk 0:02:21.5]} 19. Rhg1 {[%clk 0:01:55.5]}
19... Nxd1 {[%clk 0:02:20.1]} 20. Rxg4 {[%clk 0:01:52.1]} 20... Nxc3+ {[%clk
0:02:18.6]} 21. Bxc3 {[%clk 0:01:50.5]} 21... Bxc3 {[%clk 0:02:19.5]} 22. Ra4
{[%clk 0:01:45]} 22... a6 {[%clk 0:02:11.7]} 23. Rc4 {[%clk 0:01:42.4]} 23...
Ba5 {[%clk 0:02:08.8]} 24. Ra4 {[%clk 0:01:36]} 24... Bd8 {[%clk 0:01:49.4]} 25.
Rb4 {[%clk 0:01:28]} 25... b5 {[%clk 0:01:44]} 26. a4 {[%clk 0:01:21.6]} 26...
bxa4 {[%clk 0:01:25.9]} 27. Rxa4 {[%clk 0:01:17.9]} 27... a5 {[%clk 0:01:25.6]}
28. Nd4 {[%clk 0:01:14.9]} 28... Bb6 {[%clk 0:01:06]} 29. Nc6 {[%clk 0:01:11.8]}
29... e6 {[%clk 0:01:02.9]} 30. h6 {[%clk 0:01:02.7]} 30... Be3 {[%clk
0:00:48.5]} 31. Rxa5 {[%clk 0:00:56.8]} 31... Bxh6 {[%clk 0:00:47.3]} 32. Ra7
{[%clk 0:00:55.1]} 32... Bf4 {[%clk 0:00:44.3]} 33. c4 {[%clk 0:00:48.3]} 33...
h5 {[%clk 0:00:43.5]} 34. Kc2 {[%clk 0:00:45.5]} 34... h4 {[%clk 0:00:43.1]} 35.
Bg4 {[%clk 0:00:42.6]} 35... Re8 {[%clk 0:00:28.9]} 36. Kd3 {[%clk 0:00:39.1]}
36... Kg7 {[%clk 0:00:28]} 37. Ke4 {[%clk 0:00:32.9]} 37... Bg3 {[%clk
0:00:28.2]} 38. Kf3 {[%clk 0:00:30.6]} 38... Kf6 {[%clk 0:00:25.1]} 39. Kg2
{[%clk 0:00:25.5]} 39... Rc8 {[%clk 0:00:21.2]} 40. Bf3 {[%clk 0:00:22.2]} 40...
g5 {[%clk 0:00:18.6]} 41. Kh3 {[%clk 0:00:20.1]} 41... Rg8 {[%clk 0:00:17.5]}
42. Bg4 {[%clk 0:00:16.7]} 42... Rc8 {[%clk 0:00:17]} 43. Bf3 {[%clk 0:00:13.8]}
43... Rh8 {[%clk 0:00:14.6]} 44. Bg4 {[%clk 0:00:13.3]} 44... Kg6 {[%clk
0:00:14.8]} 45. Kg2 {[%clk 0:00:11.6]} 45... f5 {[%clk 0:00:13.7]} 46. Bd1
{[%clk 0:00:10.5]} 46... g4 {[%clk 0:00:14]} 47. Bc2 {[%clk 0:00:09.7]} 47...
Bf4 {[%clk 0:00:13.3]} 48. Ne7+ {[%clk 0:00:09]} 48... Kf6 {[%clk 0:00:13.1]}
49. Nc6 {[%clk 0:00:07]} 49... h3+ {[%clk 0:00:13.3]} 50. Kh1 {[%clk 0:00:05.6]}
50... g3 {[%clk 0:00:13.7]} 0-1

[Event "*** Titled Tuesday Blitz"]
[Site "Chess.com"]
[Date "2021.02.09"]
[Round "2"]
[White "VMikhalevski"]
[Black "ShahMatKanal"]
[Result "1-0"]
[WhiteElo "2694"]
[BlackElo "2469"]
[TimeControl "180+1"]
[EndTime "10:18:51 PST"]
[Termination "VMikhalevski won on time"]

1. Nf3 {[%clk 0:03:00.9]} 1... d5 {[%clk 0:02:59.3]} 2. g3 {[%clk 0:02:59.8]}
2... Nf6 {[%clk 0:02:59]} 3. Bg2 {[%clk 0:02:59.9]} 3... Bf5 {[%clk 0:02:57.9]}
4. O-O {[%clk 0:02:58.4]} 4... e6 {[%clk 0:02:58.2]} 5. c4 {[%clk 0:02:57.1]}
5... c6 {[%clk 0:02:57.5]} 6. d3 {[%clk 0:02:57]} 6... h6 {[%clk 0:02:57]} 7.
Qb3 {[%clk 0:02:56.1]} 7... Qb6 {[%clk 0:02:46.8]} 8. Be3 {[%clk 0:02:53.8]}
8... Qxb3 {[%clk 0:02:45.7]} 9. axb3 {[%clk 0:02:53.2]} 9... a6 {[%clk
0:02:44.2]} 10. Nc3 {[%clk 0:02:50.1]} 10... Nbd7 {[%clk 0:02:39.1]} 11. Nh4
{[%clk 0:02:39.1]} 11... Bh7 {[%clk 0:02:35.2]} 12. f4 {[%clk 0:02:38.7]} 12...
Be7 {[%clk 0:02:17.9]} 13. f5 {[%clk 0:02:36.6]} 13... Ng4 {[%clk 0:02:04.4]}
14. fxe6 {[%clk 0:02:18.1]} 14... fxe6 {[%clk 0:02:04.8]} 15. Bd4 {[%clk
0:01:47]} 15... Bc5 {[%clk 0:01:22.3]} 16. Bxc5 {[%clk 0:01:41.8]} 16... Nxc5
{[%clk 0:01:23.2]} 17. b4 {[%clk 0:01:27.3]} 17... Nd7 {[%clk 0:00:56.8]} 18. b5
{[%clk 0:01:23.4]} 18... Ke7 {[%clk 0:00:49.4]} 19. bxc6 {[%clk 0:01:08.3]}
19... bxc6 {[%clk 0:00:49.3]} 20. Ra4 {[%clk 0:00:31.1]} 20... Ne3 {[%clk
0:00:44.4]} 21. Rfa1 {[%clk 0:00:29.7]} 21... Nxg2 {[%clk 0:00:43.2]} 22. Nxg2
{[%clk 0:00:27]} 22... Rhb8 {[%clk 0:00:40]} 23. Rxa6 {[%clk 0:00:24.4]} 23...
Rxa6 {[%clk 0:00:40.9]} 24. Rxa6 {[%clk 0:00:23.7]} 24... Rxb2 {[%clk
0:00:40.6]} 25. Rxc6 {[%clk 0:00:23.2]} 25... d4 {[%clk 0:00:38.2]} 26. Nb5
{[%clk 0:00:20.6]} 26... Rxe2 {[%clk 0:00:38.2]} 27. Nxd4 {[%clk 0:00:20.5]}
27... Re5 {[%clk 0:00:31.6]} 28. Nf4 {[%clk 0:00:16.1]} 28... g5 {[%clk
0:00:31.6]} 29. Nfxe6 {[%clk 0:00:12]} 29... Bxd3 {[%clk 0:00:31.4]} 30. c5
{[%clk 0:00:10]} 30... Re1+ {[%clk 0:00:31.1]} 31. Kf2 {[%clk 0:00:09.6]} 31...
Rh1 {[%clk 0:00:31.1]} 32. Ke3 {[%clk 0:00:10.3]} 32... Bf1 {[%clk 0:00:28.6]}
33. Nf5+ {[%clk 0:00:10.1]} 33... Kf6 {[%clk 0:00:25.9]} 34. Ned4+ {[%clk
0:00:09.9]} 34... Kf7 {[%clk 0:00:21.8]} 35. Rc7 {[%clk 0:00:09.9]} 35... Ke8
{[%clk 0:00:19.7]} 36. c6 {[%clk 0:00:09.9]} 36... Nf6 {[%clk 0:00:18.7]} 37.
Re7+ {[%clk 0:00:09.2]} 37... Kf8 {[%clk 0:00:15.6]} 38. Ne6+ {[%clk 0:00:08.5]}
38... Kg8 {[%clk 0:00:15.4]} 39. Rg7+ {[%clk 0:00:08.4]} 39... Kh8 {[%clk
0:00:15.5]} 40. Nxh6 {[%clk 0:00:08]} 40... Ng4+ {[%clk 0:00:03.7]} 41. Nxg4
{[%clk 0:00:07.8]} 41... Bg2 {[%clk 0:00:03.4]} 42. Ne5 {[%clk 0:00:07.5]} 42...
Re1+ {[%clk 0:00:03.2]} 43. Kd4 {[%clk 0:00:07.3]} 43... Re4+ {[%clk 0:00:03.4]}
44. Kd5 {[%clk 0:00:07.6]} 44... Re3+ {[%clk 0:00:01.9]} 45. Kd6 {[%clk
0:00:07.6]} 1-0

[Event "*** Titled Tuesday Blitz"]
[Site "Chess.com"]
[Date "2021.02.09"]
[Round "2"]
[White "HrvojeZagreb"]
[Black "profofchess"]
[Result "1/2-1/2"]
[WhiteElo "2212"]
[BlackElo "2423"]
[TimeControl "180+1"]
[EndTime "10:18:53 PST"]
[Termination "Game drawn by repetition"]

1. d4 {[%clk 0:03:00.9]} 1... Nf6 {[%clk 0:02:59.6]} 2. Bf4 {[%clk 0:03:00]}
2... c5 {[%clk 0:02:57.2]} 3. e3 {[%clk 0:02:59.1]} 3... Nd5 {[%clk 0:02:56.9]}
4. Bg3 {[%clk 0:02:58.2]} 4... Qb6 {[%clk 0:02:57.5]} 5. b3 {[%clk 0:02:53.6]}
5... cxd4 {[%clk 0:02:55.6]} 6. exd4 {[%clk 0:02:54.5]} 6... g6 {[%clk
0:02:39.8]} 7. Nf3 {[%clk 0:02:50]} 7... Bg7 {[%clk 0:02:37]} 8. c4 {[%clk
0:02:49.5]} 8... Nf6 {[%clk 0:02:25]} 9. Nc3 {[%clk 0:02:48.8]} 9... O-O {[%clk
0:02:22.7]} 10. Be2 {[%clk 0:02:45.2]} 10... d5 {[%clk 0:02:21.2]} 11. c5 {[%clk
0:02:42.5]} 11... Qa5 {[%clk 0:02:19.2]} 12. Qd2 {[%clk 0:02:33.5]} 12... Bh6
{[%clk 0:02:14.4]} 13. Qb2 {[%clk 0:01:58.5]} 13... Nc6 {[%clk 0:02:13.5]} 14.
a3 {[%clk 0:01:54.1]} 14... Bg4 {[%clk 0:01:52.4]} 15. b4 {[%clk 0:01:49.4]}
15... Qd8 {[%clk 0:01:52.2]} 16. b5 {[%clk 0:01:48.8]} 16... Bxf3 {[%clk
0:01:36.6]} 17. bxc6 {[%clk 0:01:48.2]} 17... Bxe2 {[%clk 0:01:37]} 18. cxb7
{[%clk 0:01:46.9]} 18... Bc4 {[%clk 0:01:37.1]} 19. bxa8=Q {[%clk 0:01:42.9]}
19... Qxa8 {[%clk 0:01:38]} 20. f3 {[%clk 0:01:27.5]} 20... Be3 {[%clk
0:01:29.7]} 21. Bf2 {[%clk 0:01:17.3]} 21... Rb8 {[%clk 0:01:29.1]} 22. Qc2
{[%clk 0:01:15.3]} 22... Bf4 {[%clk 0:01:20.6]} 23. g3 {[%clk 0:01:13.9]} 23...
Bc7 {[%clk 0:01:16.4]} 24. Be3 {[%clk 0:01:08.7]} 24... a5 {[%clk 0:00:43.4]}
25. Kf2 {[%clk 0:01:07.7]} 25... Qa6 {[%clk 0:00:43.4]} 26. Rhb1 {[%clk
0:01:02.3]} 26... Rxb1 {[%clk 0:00:39.5]} 27. Qxb1 {[%clk 0:00:58.2]} 27... Qe6
{[%clk 0:00:37.3]} 28. Qb7 {[%clk 0:00:46.8]} 28... Qh3 {[%clk 0:00:32.1]} 29.
Kg1 {[%clk 0:00:46.7]} 29... Bxg3 {[%clk 0:00:29.4]} 30. Qb2 {[%clk 0:00:28.3]}
30... Bc7 {[%clk 0:00:20.5]} 31. Qg2 {[%clk 0:00:27.7]} 31... Qf5 {[%clk
0:00:20.6]} 32. Rd1 {[%clk 0:00:23.2]} 32... Nh5 {[%clk 0:00:16.4]} 33. Qg4
{[%clk 0:00:20.3]} 33... Qc2 {[%clk 0:00:08.9]} 34. Bh6 {[%clk 0:00:16.5]} 34...
f5 {[%clk 0:00:05.5]} 35. Qg2 {[%clk 0:00:09.9]} 35... Qxc3 {[%clk 0:00:04.6]}
36. Qf2 {[%clk 0:00:08.7]} 36... Qb3 {[%clk 0:00:03.5]} 37. Re1 {[%clk 0:00:08]}
37... Kf7 {[%clk 0:00:03.6]} 38. Bg5 {[%clk 0:00:07.5]} 38... Qc3 {[%clk
0:00:03.6]} 39. Rxe7+ {[%clk 0:00:07]} 39... Kf8 {[%clk 0:00:04.1]} 40. Rxc7
{[%clk 0:00:06.7]} 40... Qa1+ {[%clk 0:00:03.7]} 41. Kg2 {[%clk 0:00:07]} 41...
f4 {[%clk 0:00:03.2]} 42. Rd7 {[%clk 0:00:04]} 42... Qb1 {[%clk 0:00:03.2]} 43.
Rd8+ {[%clk 0:00:04.2]} 43... Kf7 {[%clk 0:00:03]} 44. Rd7+ {[%clk 0:00:04.6]}
44... Kf8 {[%clk 0:00:02.8]} 45. Rd8+ {[%clk 0:00:04.7]} 45... Kf7 {[%clk
0:00:02.9]} 46. Rd7+ {[%clk 0:00:05]} 46... Kf8 {[%clk 0:00:03.1]} 1/2-1/2

[Event "*** Titled Tuesday Blitz"]
[Site "Chess.com"]
[Date "2021.02.09"]
[Round "2"]
[White "MITerryble"]
[Black "PlotnikovPavel"]
[Result "1-0"]
[WhiteElo "2954"]
[BlackElo "2566"]
[TimeControl "180+1"]
[EndTime "10:18:54 PST"]
[Termination "MITerryble won by resignation"]

1. d4 {[%clk 0:02:58.9]} 1... e6 {[%clk 0:02:59.8]} 2. Nf3 {[%clk 0:02:56.7]}
2... f5 {[%clk 0:02:59.5]} 3. h3 {[%clk 0:02:50.7]} 3... Nf6 {[%clk 0:02:58.7]}
4. g4 {[%clk 0:02:50.3]} 4... b6 {[%clk 0:02:57.2]} 5. Rg1 {[%clk 0:02:37.5]}
5... Bb7 {[%clk 0:02:53]} 6. c4 {[%clk 0:02:20.9]} 6... Ne4 {[%clk 0:02:42.3]}
7. Nbd2 {[%clk 0:02:12.9]} 7... Nc6 {[%clk 0:02:37.9]} 8. a3 {[%clk 0:02:06.2]}
8... g6 {[%clk 0:02:30.8]} 9. Nxe4 {[%clk 0:02:02.6]} 9... fxe4 {[%clk
0:02:30.3]} 10. Ng5 {[%clk 0:02:02.1]} 10... Bg7 {[%clk 0:02:24.2]} 11. Be3
{[%clk 0:02:01]} 11... d5 {[%clk 0:02:22.8]} 12. Nxe6 {[%clk 0:02:00.1]} 12...
Qd7 {[%clk 0:02:22.4]} 13. cxd5 {[%clk 0:01:55.2]} 13... Nd8 {[%clk 0:02:18.6]}
14. Nxg7+ {[%clk 0:01:51]} 14... Qxg7 {[%clk 0:02:16.9]} 15. Qa4+ {[%clk
0:01:40.4]} 15... Qd7 {[%clk 0:02:13.7]} 16. Qxd7+ {[%clk 0:01:39.8]} 16... Kxd7
{[%clk 0:02:14.6]} 17. Rc1 {[%clk 0:01:33.8]} 17... Bxd5 {[%clk 0:02:12.8]} 18.
Bf4 {[%clk 0:01:33.2]} 18... c6 {[%clk 0:02:12.3]} 19. h4 {[%clk 0:01:27.1]}
19... Ne6 {[%clk 0:02:11.2]} 20. Be5 {[%clk 0:01:25.5]} 20... Rhf8 {[%clk
0:02:10.9]} 21. e3 {[%clk 0:01:25.4]} 21... g5 {[%clk 0:02:07.5]} 22. Rh1 {[%clk
0:01:23.4]} 22... Rf7 {[%clk 0:02:05.1]} 23. Rc2 {[%clk 0:01:14]} 23... Raf8
{[%clk 0:02:03.7]} 24. b4 {[%clk 0:01:08.6]} 24... b5 {[%clk 0:01:48.9]} 25. Bg2
{[%clk 0:00:54.2]} 25... a5 {[%clk 0:01:41.3]} 26. bxa5 {[%clk 0:00:51.7]} 26...
Ra8 {[%clk 0:01:40.2]} 27. Rc3 {[%clk 0:00:39.5]} 27... Rxa5 {[%clk 0:01:38.8]}
28. hxg5 {[%clk 0:00:38.1]} 28... Nxg5 {[%clk 0:01:38.1]} 29. Rh5 {[%clk
0:00:32.7]} 29... Nf3+ {[%clk 0:01:36.3]} 30. Bxf3 {[%clk 0:00:32.4]} 30... exf3
{[%clk 0:01:37.2]} 31. Kd2 {[%clk 0:00:24.8]} 31... Be4 {[%clk 0:01:32.7]} 32.
Bf4 {[%clk 0:00:18.1]} 32... b4 {[%clk 0:01:28.6]} 33. Rxa5 {[%clk 0:00:17.1]}
33... bxc3+ {[%clk 0:01:28.4]} 34. Kxc3 {[%clk 0:00:18]} 34... Rf8 {[%clk
0:01:26.6]} 35. g5 {[%clk 0:00:15.2]} 35... Ke6 {[%clk 0:01:23.1]} 36. Re5+
{[%clk 0:00:14.7]} 36... Kd7 {[%clk 0:01:22.8]} 37. Rxe4 {[%clk 0:00:15.6]}
37... Ra8 {[%clk 0:01:21.5]} 38. Kb4 {[%clk 0:00:15.2]} 38... Ra7 {[%clk
0:01:20.7]} 39. a4 {[%clk 0:00:15.2]} 39... Rb7+ {[%clk 0:01:20.4]} 40. Ka3
{[%clk 0:00:15.6]} 40... Rb1 {[%clk 0:01:19.6]} 41. Re5 {[%clk 0:00:13.8]} 41...
Ra1+ {[%clk 0:01:19.1]} 42. Kb3 {[%clk 0:00:14.1]} 42... Rb1+ {[%clk 0:01:19.1]}
43. Kc2 {[%clk 0:00:13.7]} 43... Rf1 {[%clk 0:01:17.7]} 44. Bg3 {[%clk
0:00:13.5]} 44... Re1 {[%clk 0:01:14.6]} 45. a5 {[%clk 0:00:14.4]} 45... Ra1
{[%clk 0:01:13.9]} 46. Kc3 {[%clk 0:00:15.3]} 46... Ra4 {[%clk 0:01:13.5]} 47.
Kd3 {[%clk 0:00:15.2]} 47... Ra2 {[%clk 0:01:11.5]} 48. Ke4 {[%clk 0:00:15.2]}
48... Ra4 {[%clk 0:01:10.6]} 49. Kxf3 {[%clk 0:00:15.2]} 49... Ra2 {[%clk
0:01:10.7]} 50. Kg4 {[%clk 0:00:15.4]} 50... Ra4 {[%clk 0:01:08]} 51. Rf5 {[%clk
0:00:15.6]} 51... Ke6 {[%clk 0:01:03.9]} 52. Rf6+ {[%clk 0:00:15.6]} 52... Kd5
{[%clk 0:01:04]} 53. Rd6+ {[%clk 0:00:15.5]} 53... Ke4 {[%clk 0:01:03.8]} 54.
Rxc6 {[%clk 0:00:15.8]} 54... Rxa5 {[%clk 0:01:03.6]} 55. Rc7 {[%clk 0:00:16]}
55... h5+ {[%clk 0:01:01.5]} 56. gxh6 {[%clk 0:00:14.1]} 56... Ra6 {[%clk
0:01:01.2]} 57. Re7+ {[%clk 0:00:13.7]} 57... Kd3 {[%clk 0:01:00.7]} 58. h7
{[%clk 0:00:13.8]} 58... Rg6+ {[%clk 0:01:00.9]} 59. Kf5 {[%clk 0:00:13.2]}
59... Rh6 {[%clk 0:01:00.5]} 60. Be5 {[%clk 0:00:14.1]} 60... Rh5+ {[%clk
0:01:00]} 61. Kg6 {[%clk 0:00:14.3]} 61... Rxe5 {[%clk 0:00:59]} 62. Rxe5 {[%clk
0:00:13.6]} 1-0

[Event "*** Titled Tuesday Blitz"]
[Site "Chess.com"]
[Date "2021.02.09"]
[Round "2"]
[White "Lagmantr"]
[Black "Artem_Koval"]
[Result "1-0"]
[WhiteElo "2737"]
[BlackElo "2335"]
[TimeControl "180+1"]
[EndTime "10:18:54 PST"]
[Termination "Lagmantr won on time"]

1. d4 {[%clk 0:02:51.5]} 1... Nf6 {[%clk 0:02:59.3]} 2. c4 {[%clk 0:02:52.1]}
2... e5 {[%clk 0:02:59.2]} 3. e3 {[%clk 0:02:50.6]} 3... exd4 {[%clk 0:02:58.5]}
4. exd4 {[%clk 0:02:50.4]} 4... Bb4+ {[%clk 0:02:57.8]} 5. Bd2 {[%clk
0:02:49.5]} 5... Bxd2+ {[%clk 0:02:57.1]} 6. Nxd2 {[%clk 0:02:50.4]} 6... d5
{[%clk 0:02:57.5]} 7. Ngf3 {[%clk 0:02:50.6]} 7... O-O {[%clk 0:02:56.9]} 8. Be2
{[%clk 0:02:50.3]} 8... Re8 {[%clk 0:02:56.6]} 9. O-O {[%clk 0:02:49.7]} 9...
Bg4 {[%clk 0:02:25.7]} 10. h3 {[%clk 0:02:48.7]} 10... Bh5 {[%clk 0:02:22.3]}
11. Rc1 {[%clk 0:02:43]} 11... Nc6 {[%clk 0:02:14.4]} 12. c5 {[%clk 0:02:14.9]}
12... Ne4 {[%clk 0:02:01.1]} 13. Re1 {[%clk 0:02:02.4]} 13... Qf6 {[%clk
0:01:46.3]} 14. Nxe4 {[%clk 0:01:35.7]} 14... Rxe4 {[%clk 0:01:08]} 15. Qb3
{[%clk 0:01:35.1]} 15... Rae8 {[%clk 0:00:46.4]} 16. Bd3 {[%clk 0:00:58.6]}
16... Bxf3 {[%clk 0:00:43.8]} 17. Bxe4 {[%clk 0:00:59]} 17... Bxe4 {[%clk
0:00:42.7]} 18. f3 {[%clk 0:00:56.1]} 18... Nxd4 {[%clk 0:00:19.2]} 19. Qxd5
{[%clk 0:00:47.8]} 19... Nxf3+ {[%clk 0:00:15.5]} 20. gxf3 {[%clk 0:00:32]}
20... Qxf3 {[%clk 0:00:16.4]} 21. Rxe4 {[%clk 0:00:32.6]} 21... Qxe4 {[%clk
0:00:15.3]} 22. Qxe4 {[%clk 0:00:32.3]} 22... Rxe4 {[%clk 0:00:16.2]} 23. Rd1
{[%clk 0:00:27.6]} 23... g6 {[%clk 0:00:14.9]} 24. Rd7 {[%clk 0:00:27.4]} 24...
Rb4 {[%clk 0:00:11.4]} 25. b3 {[%clk 0:00:27.7]} 25... b6 {[%clk 0:00:11]} 26.
Rxc7 {[%clk 0:00:27]} 26... bxc5 {[%clk 0:00:09.8]} 27. Rxc5 {[%clk 0:00:24.9]}
27... Kg7 {[%clk 0:00:08.4]} 28. Ra5 {[%clk 0:00:23]} 28... Rb7 {[%clk
0:00:07.9]} 29. Kf2 {[%clk 0:00:23.4]} 29... h5 {[%clk 0:00:07.4]} 30. h4 {[%clk
0:00:22.8]} 30... f6 {[%clk 0:00:07]} 31. Kg3 {[%clk 0:00:22.6]} 31... Kh6
{[%clk 0:00:06.2]} 32. Kf4 {[%clk 0:00:22.9]} 32... g5+ {[%clk 0:00:04.5]} 33.
Kg3 {[%clk 0:00:20]} 33... g4 {[%clk 0:00:03.7]} 34. Kf4 {[%clk 0:00:18.2]}
34... Kg6 {[%clk 0:00:04.3]} 35. Ra6 {[%clk 0:00:16.6]} 35... Rb4+ {[%clk
0:00:04.1]} 36. Kg3 {[%clk 0:00:17]} 36... Rb7 {[%clk 0:00:04.4]} 37. Kf4 {[%clk
0:00:16.5]} 37... Rb4+ {[%clk 0:00:04.6]} 38. Kg3 {[%clk 0:00:17]} 38... Rb7
{[%clk 0:00:04.7]} 39. Ra5 {[%clk 0:00:17.3]} 39... Kf7 {[%clk 0:00:02.9]} 40.
Rxh5 {[%clk 0:00:16.5]} 40... Kg6 {[%clk 0:00:03.8]} 41. Ra5 {[%clk 0:00:15.9]}
41... Kf7 {[%clk 0:00:03.8]} 42. Kxg4 {[%clk 0:00:16.1]} 42... Rb4+ {[%clk
0:00:03.9]} 43. Kg3 {[%clk 0:00:16.6]} 43... Kg6 {[%clk 0:00:04.3]} 44. Rxa7
{[%clk 0:00:16]} 44... Rd4 {[%clk 0:00:03.9]} 45. Ra4 {[%clk 0:00:16.5]} 45...
Rd2 {[%clk 0:00:04]} 46. Rg4+ {[%clk 0:00:16]} 46... Kf7 {[%clk 0:00:03.7]} 47.
Ra4 {[%clk 0:00:15.8]} 47... Kg6 {[%clk 0:00:03.7]} 48. Ra8 {[%clk 0:00:15.7]}
48... Rd5 {[%clk 0:00:03.6]} 49. b4 {[%clk 0:00:14.9]} 1-0